fUSD/lending_fUSD_20251130
["ID","MTS","AMOUNT","RATE_DAILY","PERIOD"]
[395158450,1764490255388,-195.74893453,0.00021,2]
[395158451,1764490255397,-350.0,0.00021,2]
[395158452,1764490255407,-12442.87,0.00021068,2]
[395158453,1764490255416,-484.85207896,0.00021261,2]
[395158454,1764490255428,-173.6301566,0.00021261,2]
[395158455,1764490255438,-271.71903996,0.00021261,2]
[395158456,1764490255447,-298.26089446,0.00021261,2]
[395158457,1764490255456,-621.78829552,0.00021263,2]
[395158458,1764490255465,-1000.0,0.00021265,2]
[395158459,1764490255474,-298.83,0.00021291,2]
[395158460,1764490255483,-8252.4892869,0.00021295,2]
[395158461,1764490255492,-6341.18,0.0002137,2]
[395158462,1764490255501,-440.8173249,0.00021417,2]
[395158463,1764490255511,-500.0,0.00021439,2]
[395158464,1764490255520,-246.57118594,0.0002149,2]
[395158465,1764490255529,-57213.72804296,0.000215,2]
[395158466,1764490255539,-220.77224672,0.000215,2]
[395158467,1764490255550,-1130.63995339,0.0002156,5]
[395158468,1764490255562,-1148.34072679,0.0002156,5]
[395158469,1764490255573,-1028.55803078,0.0002156,5]
[395158470,1764490255583,-1065.8125218,0.0002156,5]
[395158471,1764490255592,-1080.91179451,0.0002156,5]
[395158472,1764490255601,-1093.65550728,0.0002156,5]
[395158473,1764490255610,-1068.59665598,0.0002156,5]
[395158474,1764490255619,-1041.86605908,0.0002156,5]
[395158475,1764490255628,-1091.08488525,0.0002156,5]
[395158476,1764490255638,-1460.72593622,0.0002156,5]
[395158477,1764490255647,-1079.53291176,0.0002156,5]
[395158478,1764490255656,-1779.11037676,0.0002156,5]
[395158479,1764490255666,-310.68826752,0.0002156,2]
[395158480,1764490255676,-1137.09925193,0.0002156,5]
[395158481,1764490255685,-1053.13014973,0.0002156,5]
[395158482,1764490255695,-1016.1647013,0.0002156,5]
[395158483,1764490255704,-1079.13864852,0.0002156,5]
[395158484,1764490255714,-1155.39461464,0.0002156,5]
[395158485,1764490255723,-1097.0,0.00021725,2]
[395158486,1764490255733,-1000.0,0.00021813,2]
[395158487,1764490255743,-4500.0,0.00021837,2]
[395158488,1764490255753,-5000.0,0.00021918,2]
[395158489,1764490255762,-150.0,0.00021918,2]
[395158490,1764490255772,-150.0,0.00021918,2]
[395158491,1764490255781,-150.0,0.00021918,2]
[395158492,1764490255790,-500.0,0.00021986,2]
[395158493,1764490255799,-666.0,0.00021999,2]
[395158494,1764490255808,-672.19427991,0.00021999,2]
[395158495,1764490255817,-666.0,0.00021999,2]
[395158496,1764490255828,-187.92992603,0.00021999,2]
[395158497,1764490255837,-24125.77250893,0.00022,2]
[395158498,1764490255847,-4121.04886237,0.00022,2]
[395158499,1764490255856,-160.97,0.00022,2]
[395158500,1764490255864,-254.59771835,0.00022,2]
[395158501,1764490255874,-631.0,0.00022,7]
[395158502,1764490255883,-151.0,0.00022,2]
[395158503,1764490255896,-1250.0,0.00022,2]
[395158504,1764490255905,-1250.0,0.00022,2]
[395158505,1764490255915,-151.0,0.00022,2]
[395158506,1764490255924,-151.0,0.00022,2]
[395158507,1764490255935,-1250.0,0.00022,2]
[395158508,1764490255944,-1250.0,0.00022,2]
[395158509,1764490255953,-1250.0,0.00022,2]
[395158510,1764490255961,-1250.0,0.00022,2]
[395158511,1764490255971,-152.0,0.00022,2]
[395158512,1764490255981,-152.0,0.00022,2]
[395158513,1764490255990,-152.0,0.00022,2]
[395158514,1764490255999,-971.0,0.00022,2]
[395158515,1764490256008,-414.77797921,0.00022007,2]
[395158516,1764490256017,-157.41715578,0.00022055,2]
[395158517,1764490256026,-150.0,0.00022055,2]
[395158518,1764490256035,-1300.0,0.00022077,2]
[395158519,1764490256044,-1300.0,0.00022078,2]
[395158520,1764490256054,-491.45905431,0.000221,2]
[395158521,1764490256065,-298.83,0.0002211,2]
[395158522,1764490256082,-238.80423263,0.0002211,2]
[395158523,1764490256092,-1258.0,0.00022179,2]
[395158524,1764490256112,-640.0,0.00022179,2]
[395158525,1764490256128,-909.0,0.00022179,2]
[395158526,1764490256138,-1193.0,0.00022179,2]
[395158527,1764490256147,-2718.0,0.00022179,2]
[395158528,1764490256157,-252.0,0.00022179,2]
[395158529,1764490256167,-6506.0,0.00022179,2]
[395158530,1764490256177,-203.45756783,0.00022192,2]
[395158531,1764490256187,-1900.0,0.000223,2]
[395158532,1764490256196,-500.0,0.00022359,2]
[395158533,1764490256206,-287028.8134504,0.00022397,2]
[395158534,1764490256217,-666.0,0.00022499,2]
[395158535,1764490256228,-666.0,0.00022499,2]
[395158536,1764490256238,-35292.78827707,0.000225,2]
[395158537,1764490256248,-1213.78,0.00022548,2]
[395158538,1764490256257,-170.01,0.00022548,2]
[395158539,1764490256267,-1213.78,0.00022548,2]
[395158540,1764490256276,-1213.78,0.00022548,2]
[395158541,1764490256285,-170.01,0.00022548,2]
[395158542,1764490256294,-177.88,0.00022548,2]
[395158543,1764490256304,-1213.78,0.00022548,2]
[395158544,1764490256313,-170.01,0.00022548,2]
[395158545,1764490256322,-177.88,0.00022548,2]
[395158546,1764490256331,-177.88,0.00022548,2]
[395158547,1764490256340,-1156.03,0.00022548,2]
[395158548,1764490256349,-170.01,0.00022548,2]
[395158549,1764490256363,-177.88,0.00022548,2]
[395158550,1764490256372,-170.01,0.00022548,2]
[395158551,1764490256381,-177.88,0.00022548,2]
[395158552,1764490256390,-170.01,0.00022548,2]
[395158553,1764490256399,-177.88,0.00022548,2]
[395158554,1764490256408,-170.01,0.00022548,2]
[395158555,1764490256418,-177.88,0.00022548,2]
[395158556,1764490256428,-170.01,0.00022548,2]
[395158557,1764490256437,-177.88,0.00022548,2]
[395158558,1764490256447,-166.92,0.00022548,2]
[395158559,1764490256456,-177.88,0.00022548,2]
[395158560,1764490256465,-1600.0,0.00022549,2]
[395158561,1764490256474,-150.0,0.00022599,2]
[395158562,1764490256484,-150.0,0.00022599,2]
[395158563,1764490256494,-150.0,0.00022599,2]
[395158564,1764490256505,-150.0,0.00022599,2]
[395158565,1764490256514,-150.0,0.00022599,2]
[395158566,1764490256523,-150.0,0.00022599,2]
[395158567,1764490256532,-610.0,0.00022599,2]
[395158568,1764490256542,-3442.0,0.00022599,2]
[395158569,1764490256552,-1321.0,0.00022599,2]
[395158570,1764490256561,-309.29654756,0.0002263,2]
[395158571,1764490256570,-9035.0,0.00022632,2]
[395158572,1764490256579,-4500.0,0.00022638,2]
[395158573,1764490256588,-519.92626802,0.0002271,2]
[395158574,1764490256597,-766.93269611,0.00022784,2]
[395158575,1764490256607,-1097.0,0.00022868,2]
[395158576,1764490256616,-19276.36869419,0.000229,2]
[395158577,1764490256625,-1001.49022851,0.00023,2]
[395158578,1764490256635,-400.0,0.00023,2]
[395158579,1764490256644,-1300.0,0.00023029,2]
[395158580,1764490256654,-1900.0,0.00023081,2]
[395158581,1764490256663,-2570.00261966,0.000231,2]
[395158582,1764490256672,-1900.0,0.00023121,2]
[395158583,1764490256681,-1300.0,0.00023121,2]
[395158584,1764490256690,-4500.0,0.00023151,2]
[395158585,1764490256700,-51853.8705599,0.000232,2]
[395158586,1764490256709,-500.0,0.00023288,2]
[395158587,1764490256718,-500.0,0.00023288,2]
[395158588,1764490256728,-500.0,0.00023288,2]
[395158589,1764490256737,-500.0,0.00023288,2]
[395158590,1764490256746,-500.0,0.00023288,2]
[395158591,1764490256755,-500.0,0.00023288,2]
[395158592,1764490256764,-500.0,0.00023288,2]
[395158593,1764490256774,-500.0,0.00023288,2]
[395158594,1764490256783,-500.0,0.00023288,2]
[395158595,1764490256792,-269.73378234,0.00023288,2]
[395158596,1764490256802,-631.0,0.000234,7]
[395158597,1764490256813,-8252.4892869,0.00023443,2]
[395158598,1764490256822,-200.0,0.000235,2]
[395158599,1764490256832,-1300.0,0.00023512,2]
[395158600,1764490256841,-1300.0,0.0002354,2]
[395158601,1764490256851,-4500.0,0.00023555,2]
[395158602,1764490256860,-374.5,0.00023944,15]
[395158603,1764490256869,-1900.0,0.00023968,2]
[395158604,1764490256878,-320.74051982,0.00023999,2]
[395158605,1764490256888,-1014.60456319,0.00024,2]
[395158606,1764490256902,-3600.0,0.00024,2]
[395158607,1764490256911,-16112.01050485,0.00024,2]
[395158608,1764490256920,-607.02860199,0.00024002,2]
[395158609,1764490256931,-1300.0,0.00024029,2]
[395158610,1764490256940,-1900.0,0.00024056,2]
[395158611,1764490256949,-1900.0,0.0002406,2]
[395158612,1764490256959,-1097.0,0.00024072,2]
[395158613,1764490256968,-1300.0,0.00024111,2]
[395158614,1764490256978,-4500.0,0.0002415,2]
[395158615,1764490256987,-419.16677837,0.0002421,2]
[395158616,1764490256996,-3673.03961673,0.0002421,2]
[395158617,1764490257005,-500.0,0.00024239,2]
[395158618,1764490257015,-150.0,0.0002425,2]
[395158619,1764490257024,-150.0,0.0002425,2]
[395158620,1764490257033,-4500.0,0.00024366,2]
[395158621,1764490257042,-2000.0,0.000244,2]
[395158622,1764490257051,-1300.0,0.00024458,2]
[395158623,1764490257060,-152.0,0.00024516,2]
[395158624,1764490257069,-498.0,0.000246,2]
[395158625,1764490257078,-614.2514223,0.00024603,2]
[395158626,1764490257087,-593.60890134,0.0002465,2]
[395158627,1764490257096,-166.4365239,0.0002465,2]
[395158628,1764490257105,-287.53,0.00024658,2]
[395158629,1764490257114,-1000.0,0.00024658,2]
[395158630,1764490257123,-151.0,0.00024658,2]
[395158631,1764490257132,-160.08034637,0.00024673,2]
[395158632,1764490257141,-701.25539044,0.0002477,2]
[395158633,1764490257151,-500.0,0.00024799,2]
[395158634,1764490257160,-500.0,0.00024799,2]
[395158635,1764490257169,-631.0,0.000248,7]
[395158636,1764490257178,-1104.0536043,0.000248,2]
[395158637,1764490257188,-151.0,0.000248,7]
[395158638,1764490257197,-151.0,0.000248,7]
[395158639,1764490257207,-151.0,0.000248,7]
[395158640,1764490257217,-176.888969,0.000248,7]
[395158641,1764490257227,-151.0,0.000248,7]
[395158642,1764490257236,-220.999537,0.000248,7]
[395158643,1764490257246,-240.808236,0.000248,7]
[395158644,1764490257257,-240.808236,0.000248,7]
[395158645,1764490257268,-240.808236,0.000248,7]
[395158646,1764490257277,-240.808236,0.000248,7]
[395158647,1764490257286,-151.0,0.000248,7]
[395158648,1764490257296,-151.0,0.000248,7]
[395158649,1764490257306,-419.401871,0.000248,7]
[395158650,1764490257317,-151.0,0.000248,7]
[395158651,1764490257326,-419.401871,0.000248,7]
[395158652,1764490257335,-151.0,0.000248,7]
[395158653,1764490257344,-419.401871,0.000248,7]
[395158654,1764490257353,-419.401871,0.000248,7]
[395158655,1764490257362,-151.0,0.000248,7]
[395158656,1764490257371,-151.0,0.000248,7]
[395158657,1764490257380,-151.0,0.000248,7]
[395158658,1764490257389,-151.0,0.000248,7]
[395158659,1764490257398,-990.266982,0.000248,7]
[395158660,1764490257409,-990.266982,0.000248,7]
[395158661,1764490257419,-151.0,0.000248,7]
[395158662,1764490257428,-990.266982,0.000248,7]
[395158663,1764490257437,-732.247,0.000248,7]
[395158664,1764490257447,-990.266982,0.000248,7]
[395158665,1764490257458,-732.247,0.000248,7]
[395158666,1764490257469,-732.247,0.000248,7]
[395158667,1764490257479,-151.0,0.000248,7]
[395158668,1764490257490,-732.247,0.000248,7]
[395158669,1764490257499,-151.0,0.000248,7]
[395158670,1764490257508,-182.378787,0.000248,7]
[395158671,1764490257518,-151.0,0.000248,7]
[395158672,1764490257527,-182.378787,0.000248,7]
[395158673,1764490257536,-232.714395,0.000248,7]
[395158674,1764490257545,-182.378787,0.000248,7]
[395158675,1764490257554,-151.0,0.000248,7]
[395158676,1764490257563,-232.714395,0.000248,7]
[395158677,1764490257572,-182.378787,0.000248,7]
[395158678,1764490257582,-232.714395,0.000248,7]
[395158679,1764490257591,-151.0,0.000248,7]
[395158680,1764490257600,-232.714395,0.000248,7]
[395158681,1764490257609,-152.192878,0.000248,7]
[395158682,1764490257619,-835.575676,0.000248,7]
[395158683,1764490257628,-835.575676,0.000248,7]
[395158684,1764490257639,-835.575676,0.000248,7]
[395158685,1764490257648,-835.575676,0.000248,7]
[395158686,1764490257657,-151.0,0.000248,7]
[395158687,1764490257667,-177.567931,0.000248,7]
[395158688,1764490257676,-151.0,0.000248,7]
[395158689,1764490257685,-261.119854,0.000248,7]
[395158690,1764490257695,-1049.194147,0.000248,7]
[395158691,1764490257704,-1049.194147,0.000248,7]
[395158692,1764490257713,-151.0,0.000248,7]
[395158693,1764490257723,-1049.194147,0.000248,7]
[395158694,1764490257732,-151.0,0.000248,7]
[395158695,1764490257741,-1049.194147,0.000248,7]
[395158696,1764490257750,-151.0,0.000248,7]
[395158697,1764490257759,-151.0,0.000248,7]
[395158698,1764490257768,-187.670596,0.000248,7]
[395158699,1764490257777,-151.0,0.000248,7]
[395158700,1764490257787,-187.670596,0.000248,7]
[395158701,1764490257796,-151.0,0.000248,7]
[395158702,1764490257804,-187.670596,0.000248,7]
[395158703,1764490257814,-187.670596,0.000248,7]
[395158704,1764490257824,-151.0,0.000248,7]
[395158705,1764490257832,-151.0,0.000248,7]
[395158706,1764490257842,-151.0,0.000248,7]
[395158707,1764490257851,-151.0,0.000248,7]
[395158708,1764490257860,-221059.62104525,0.000248,3]
[395158709,1764490258871,-3246.08584947,0.000248,3]
[395158710,1764490259422,196.54927532,0.00012774,2]
[395158711,1764490259502,-563.939,0.00019179,2]
[395158712,1764490259511,-902.68314,0.00020585,2]
[395158713,1764490259520,-3108.37786,0.000248,3]
[395158714,1764490259558,-911.13452864,0.000248,3]
[395158715,1764490260033,-231.47564842,0.00013698,2]
[395158716,1764490260043,-705.79,0.00013699,2]
[395158717,1764490260052,-190.67706705,0.00013699,2]
[395158718,1764490260062,-196.54927532,0.0001423,2]
[395158719,1764490260071,-902.68314,0.00020585,2]
[395158720,1764490260080,-902.68314,0.00020585,2]
[395158721,1764490260089,-902.68314,0.00020585,2]
[395158722,1764490260098,-151.0,0.00020585,2]
[395158723,1764490260107,-538.190808,0.00020585,2]
[395158724,1764490260116,-151.0,0.00020585,2]
[395158725,1764490260125,-562.0,0.00022179,2]
[395158726,1764490260135,-5260.27361,0.000248,3]
[395158727,1764490260508,184.0,0.00022,30]
[395158792,1764490369054,-300.0,0.00012774,2]
[395158793,1764490369140,-219.0,0.00012774,2]
[395158806,1764490381317,300.0,0.00012775,2]
[395158809,1764490441650,300.0,0.00012775,2]
[395158810,1764490475085,409.0295543,0.00012775,2]
[395158811,1764490477410,500.0,0.00012775,2]
[395158812,1764490477520,341.76128413,0.00012775,2]
[395158813,1764490477646,500.0,0.00012775,2]
[395158814,1764490477742,500.0,0.00012775,2]
[395158815,1764490477844,500.0,0.00012775,2]
[395158816,1764490477952,500.0,0.00012775,2]
[395158817,1764490478043,500.0,0.00012775,2]
[395158818,1764490478144,500.0,0.00012775,2]
[395158819,1764490478242,500.0,0.00012775,2]
[395158820,1764490478363,500.0,0.00012775,2]
[395158821,1764490500415,3111.21916157,0.00012698,2]
[395158822,1764490500485,1574.24471457,0.00012698,2]
[395158823,1764490501249,300.0,0.00012775,2]
[395158824,1764490501327,300.0,0.00012775,2]
[395158825,1764490501555,1200.0,0.00012775,2]
[395158826,1764490502147,150.0,0.00012775,2]
[395158827,1764490514984,553.94301993,0.00012698,2]
[395158828,1764490561358,300.0,0.00012775,2]
[395158829,1764490604911,162.45,0.00019178,30]
[395158830,1764490670120,1000.0,0.00012676,2]
[395158831,1764490673326,1200.0,0.00012775,2]
[395158832,1764490682110,150.0,0.00012775,2]
[395158833,1764490695315,210.898059,0.00012712,2]
[395158834,1764490734424,2500.0,0.00012676,2]
[395158835,1764490741441,300.0,0.00012775,2]
[395158836,1764490797867,260.9242065,0.00012687,2]
[395158837,1764490797932,223.77593593,0.00012687,2]
[395158838,1764490801279,300.0,0.00012775,2]
[395158839,1764490801357,1200.0,0.00012775,2]
[395158840,1764490802873,6808.04620521,0.00012687,2]
[395158841,1764490841148,686.668,0.00012676,2]
[395158843,1764490861347,300.0,0.00012775,2]
[395158844,1764490861983,150.0,0.00012775,2]
[395158846,1764490890554,331.51985886,0.00012687,2]
[395158847,1764490890626,4408.19062329,0.00012687,2]
[395158849,1764490893038,3216.806,0.00012521,2]
[395158850,1764490893141,186.674,0.00012521,2]
[395158851,1764490904667,1421.9994,0.00012676,2]
[395158853,1764490916176,766.33997671,0.00012712,2]
[395158854,1764490916243,1061.88545229,0.00012712,2]
[395158855,1764490916721,500.0,0.00012775,2]
[395158856,1764490916808,500.0,0.00012775,2]
[395158857,1764490927207,500.0,0.00012775,2]
[395158858,1764490927349,500.0,0.00012775,2]
[395158859,1764490927480,500.0,0.00012775,2]
[395158860,1764490927601,500.0,0.00012775,2]
[395158861,1764490927732,500.0,0.00012775,2]
[395158862,1764490927846,200.0,0.00012775,2]
[395158863,1764490929487,4371.58276271,0.00012712,2]
[395158864,1764490937688,845.07858388,0.00012712,2]
[395158865,1764490972843,-520.25597897,0.00012775,2]
[395158866,1764490972871,-5979.74402103,0.00012776,2]
[395158867,1764490987817,1376.960675,7.945e-05,2]
[395158869,1764491119952,5027.60774342,9e-05,2]
[395158870,1764491167804,3056.051367,7.945e-05,2]
[395158871,1764491293097,-164.40486399,0.00012576,2]
[395158872,1764491293181,-2200.5979,0.00012676,2]
[395158873,1764491293275,-2500.0,0.00012676,2]
[395158874,1764491294110,-288.0,0.00012681,2]
[395158875,1764491294196,-300.0,0.00012681,2]
[395158876,1764491294291,-1400.9243696,0.00012682,2]
[395158877,1764491294391,-3977.8487392,0.00012682,2]
[395158878,1764491294518,-578.62882631,0.00012682,2]
[395158879,1764491294604,-1465.68369529,0.00012682,2]
[395158880,1764491294689,-2802.90317544,0.00012682,2]
[395158881,1764491295142,-1462.83625854,0.00012682,2]
[395158882,1764491295234,-1200.0,0.00012775,2]
[395158883,1764491295313,-300.0,0.00012775,2]
[395158884,1764491295390,-150.0,0.00012775,2]
[395158885,1764491295467,-409.52668728,0.00012775,2]
[395158886,1764491295547,-199.05372569,0.00012775,2]
[395158887,1764491295625,-183.50503754,0.00012775,2]
[395158888,1764491295710,-500.0,0.00012775,2]
[395158889,1764491295796,-337.97347601,0.00012775,2]
[395158890,1764491296961,-181.39330656,0.00012776,2]
[395158891,1764491299659,-558.19147057,0.00012776,2]
[395158892,1764491301773,-260.19658991,0.00012776,2]
[395158893,1764491303217,-296.55391083,0.00012776,2]
[395158894,1764491305685,-300.0,0.00012776,2]
[395158895,1764491308239,-451.5997428,0.00012776,2]
[395158896,1764491311070,-289.2812312,0.00012776,2]
[395158897,1764491313210,-500.0,0.00012776,2]
[395158898,1764491317882,-200.7170109,0.00012776,2]
[395158899,1764491319403,-538.05344782,0.00012776,2]
[395158900,1764491320950,-302.0,0.00012776,2]
[395158901,1764491322828,-215.92294338,0.00012776,2]
[395158902,1764491325099,-254.69291239,0.00012776,2]
[395158903,1764491326627,-249.54801596,0.00012776,2]
[395158905,1764491328597,-300.0,0.00012776,2]
[395158906,1764491330186,-548.96763811,0.00012776,2]
[395158907,1764491335615,-238.36710413,0.00012776,2]
[395158908,1764491338289,-500.0,0.00012776,2]
[395158909,1764491340652,514.21962988,0.00012775,2]
[395158910,1764491340740,34.74800823,0.00012775,2]
[395158911,1764491340892,-303.9355801,0.00012776,2]
[395158912,1764491341443,300.0,0.00012775,2]
[395158913,1764491342553,-408.38485125,0.00012776,2]
[395158914,1764491345682,-293.43049039,0.00012776,2]
[395158915,1764491347154,-166.27919891,0.00012776,2]
[395158916,1764491349229,-393.53387593,0.00012776,2]
[395158917,1764491350673,548.96763811,0.00012775,2]
[395158918,1764491351859,-391.0781462,0.00012776,2]
[395158919,1764491354763,-410.77630252,0.00012776,2]
[395158920,1764491363211,-198.57145067,0.00012798,2]
[395158921,1764491364011,9116.29435366,0.00012676,2]
[395158922,1764491364087,10000.01,0.00012676,2]
[395158923,1764491364165,10000.01,0.00012676,2]
[395158924,1764491364241,10000.01,0.00012676,2]
[395158925,1764491364320,10000.01,0.00012676,2]
[395158926,1764491364397,10000.01,0.00012676,2]
[395158927,1764491364474,10000.01,0.00012676,2]
[395158928,1764491364551,10000.01,0.00012676,2]
[395158929,1764491364624,10000.01,0.00012676,2]
[395158930,1764491365061,-500.0,0.00012676,2]
[395158931,1764491366529,-350.0,0.00012676,2]
[395158932,1764491369216,-198.8917248,0.00012676,2]
[395158933,1764491370319,-300.0,0.00012676,2]
[395158934,1764491373260,-667.93750912,0.00012676,2]
[395158935,1764491376901,-163.73263199,0.00012676,2]
[395158936,1764491380399,-300.0,0.00012676,2]
[395158937,1764491380947,-773.76967135,0.00012676,2]
[395158938,1764491381022,-10000.01,0.00012676,2]
[395158939,1764491381438,-10000.01,0.00012676,2]
[395158940,1764491381638,-10000.01,0.00012676,2]
[395158941,1764491381811,-10000.01,0.00012676,2]
[395158942,1764491381973,-10000.01,0.00012676,2]
[395158943,1764491382118,-212.0,0.00012676,2]
[395158944,1764491382160,-10000.01,0.00012676,2]
[395158945,1764491382274,-10000.01,0.00012676,2]
[395158946,1764491383647,-272.96386,0.00012676,2]
[395158947,1764491385611,-385.59247409,0.00012676,2]
[395158948,1764491387910,-181.15641038,0.00012676,2]
[395158949,1764491391816,-349.68414304,0.00012676,2]
[395158950,1764491394045,-239.84461896,0.00012676,2]
[395158951,1764491394668,500.0,0.00013798,4]
[395158952,1764491397363,-228.56036305,0.00012676,2]
[395158953,1764491398841,-198.18696423,0.00012676,2]
[395158954,1764491400808,-221.97219332,0.00012676,2]
[395158955,1764491401254,300.0,0.00012675,2]
[395158956,1764491402855,300.0,0.00012675,2]
[395158957,1764491403004,1200.0,0.00012675,2]
[395158958,1764491403163,150.0,0.00012675,2]
[395158959,1764491404290,-269.71146789,0.00012676,2]
[395158960,1764491407596,-403.50816133,0.00012676,2]
[395158961,1764491410275,-280.44853211,0.00012676,2]
[395158962,1764491411877,-180.12476308,0.00012676,2]
[395158963,1764491414478,-155.51444591,0.00012676,2]
[395158964,1764491415532,-277.7958107,0.00012676,2]
[395158965,1764491418316,-318.60669344,0.00012676,2]
[395158966,1764491421342,-159.9155177,0.00012676,2]
[395158967,1764491423899,-187.42409288,0.00012676,2]
[395158968,1764491427236,-177.90352714,0.00012676,2]
[395158969,1764491429918,-195.0,0.00012676,2]
[395158982,1764491432243,-350.15000193,0.00012676,2]
[395158983,1764491432277,-341.500001,0.00012676,2]
[395158991,1764491433942,-213.31346868,0.00012676,2]
[395158992,1764491434528,473.16513817,0.00012675,2]
[395158993,1764491434579,213.57775778,0.00012675,2]
[395158994,1764491434665,184.94694162,0.00012675,2]
[395158996,1764491438222,-421.11779596,0.00012676,2]
[395158997,1764491438658,-372.68826684,0.00012676,2]
[395158998,1764491438689,-2794.38801578,0.00012676,2]
[395158999,1764491438700,-588240.15251964,0.00012676,2]
[395159000,1764491438710,-2500.0,0.00012676,2]
[395159001,1764491438719,-25932.5244471,0.00012686,2]
[395159002,1764491438729,-594.58915844,0.00012698,2]
[395159003,1764491438739,-801.42854933,0.00012798,2]
[395159004,1764491438749,-7423.08563039,0.00013151,2]
[395159005,1764491438758,-4265.73943391,0.00013151,2]
[395159006,1764491438768,-1883.82,0.00013166,2]
[395159007,1764491438778,-594.58915837,0.00013298,2]
[395159008,1764491438787,-413.0,0.000135,2]
[395159010,1764491438798,-7423.08563039,0.0001362,2]
[395159012,1764491438808,-4265.73943391,0.0001362,2]
[395159014,1764491438818,-500.0,0.00013698,2]
[395159017,1764491438827,-500.0,0.00013698,2]
[395159019,1764491438837,-500.0,0.00013698,2]
[395159020,1764491438847,-545.90394043,0.00013698,2]
[395159022,1764491438856,-2000.0,0.0001374,2]
[395159023,1764491438867,-255.0,0.00013778,2]
[395159024,1764491438878,-500.0,0.00013798,2]
[395159025,1764491438888,-500.0,0.00013798,2]
[395159026,1764491438898,-500.0,0.00013798,3]
[395159027,1764491438908,-19643.88,0.00013803,2]
[395159028,1764491438919,-220.09,0.00013884,2]
[395159029,1764491438928,-594.58915837,0.00013899,2]
[395159030,1764491438939,-420.0,0.00013905,2]
[395159031,1764491438950,-420.0,0.00013905,2]
[395159032,1764491438959,-1680.0,0.00013943,2]
[395159033,1764491438970,-195.0,0.00013944,2]
[395159034,1764491438979,-195.0,0.00013944,2]
[395159035,1764491438989,-195.0,0.00013944,2]
[395159036,1764491439000,-195.0,0.00013944,2]
[395159037,1764491439011,-1045.29,0.00013945,2]
[395159038,1764491439020,-150.99,0.00014013,2]
[395159039,1764491439030,-299.99,0.00014013,2]
[395159040,1764491439040,-999.99,0.00014013,2]
[395159041,1764491439050,-9999.99,0.00014013,2]
[395159042,1764491439060,-9999.99,0.00014013,2]
[395159043,1764491439070,-150.99,0.00014013,2]
[395159044,1764491439080,-195.0,0.00014054,2]
[395159045,1764491439090,-281.90988596,0.00014054,2]
[395159046,1764491439100,-300.0,0.00014054,2]
[395159047,1764491439110,-300.0,0.00014054,2]
[395159048,1764491439120,-300.0,0.00014054,2]
[395159049,1764491439130,-150.39058857,0.00014054,2]
[395159050,1764491439140,-7423.08563039,0.00014089,2]
[395159051,1764491439149,-4265.73943391,0.00014089,2]
[395159052,1764491439159,-8550.96,0.00014176,2]
[395159053,1764491439169,-200.28160327,0.00014194,2]
[395159054,1764491439178,-213.42414178,0.000142,2]
[395159055,1764491439188,-594.58915837,0.00014499,2]
[395159056,1764491439197,-7423.08563039,0.00014558,2]
[395159057,1764491439206,-4265.73943391,0.00014558,2]
[395159058,1764491439216,-26370.51470969,0.000146,2]
[395159059,1764491439225,-225.29829185,0.000149,2]
[395159060,1764491439235,-266.78017722,0.000149,2]